fUSD/lending_fUSD_20250607
["ID","MTS","AMOUNT","RATE_DAILY","PERIOD"]
[364945017,1749333038591,-150.0,0.00019743,2]
[364945018,1749333038601,-223.74292788,0.00019748,2]
[364945019,1749333038611,-150.0,0.00019757,2]
[364945020,1749333038622,-4558.59142224,0.00019758,2]
[364945021,1749333038632,-150.0,0.00019768,2]
[364945022,1749333038642,-223.74292788,0.0001977,2]
[364945023,1749333038651,-223.74292788,0.00019791,2]
[364945024,1749333038661,-184.74141799,0.000198,2]
[364945025,1749333038671,-4558.59142224,0.00019805,2]
[364945026,1749333038681,-223.74292788,0.00019813,2]
[364945027,1749333038691,-12703.557009,0.00019815,2]
[364945028,1749333038700,-150.0,0.00019815,2]
[364945029,1749333038710,-223.74292788,0.00019835,2]
[364945030,1749333038720,-150.0,0.00019838,2]
[364945031,1749333038730,-2000.0,0.0001984,2]
[364945032,1749333038740,-200.0,0.0001984,2]
[364945033,1749333038750,-150.0,0.00019844,2]
[364945034,1749333038760,-150.0,0.00019852,2]
[364945035,1749333038770,-4558.59142224,0.00019853,2]
[364945036,1749333038780,-223.74292788,0.00019857,2]
[364945037,1749333038790,-554.03609201,0.00019869,2]
[364945038,1749333038800,-2988.0,0.0001987,7]
[364945039,1749333038810,-150.0,0.00019874,2]
[364945040,1749333038820,-460.84,0.00019877,2]
[364945041,1749333038830,-223.74292788,0.00019878,2]
[364945042,1749333038840,-765.74982264,0.000199,2]
[364945043,1749333038850,-765.74982264,0.000199,2]
[364945044,1749333038859,-2579.892,0.000199,2]
[364945045,1749333038870,-5043.79663932,0.000199,2]
[364945046,1749333038879,-6638.74626294,0.000199,2]
[364945047,1749333038889,-4558.59142224,0.000199,2]
[364945048,1749333038898,-223.74292788,0.000199,2]
[364945049,1749333038907,-184.74141799,0.000199,2]
[364945050,1749333038918,-398.65040612,0.000199,2]
[364945051,1749333038929,-1000.0,0.000199,2]
[364945052,1749333038940,-150.0,0.00019944,2]
[364945053,1749333038950,-150.0,0.00019946,2]
[364945054,1749333038961,-150.0,0.00019962,2]
[364945055,1749333038971,-500.0,0.00019973,2]
[364945056,1749333038984,-500.0,0.00019973,2]
[364945057,1749333038994,-500.0,0.00019973,2]
[364945058,1749333039004,-500.0,0.00019973,2]
[364945059,1749333039017,-150.0,0.00019977,2]
[364945060,1749333039027,-152.25,0.0001999,2]
[364945061,1749333039037,-10522.2617481,0.00019999,2]
[364945062,1749333039047,-34461.78,0.00019999,2]
[364945063,1749333039057,-510.0,0.00019999,2]
[364945064,1749333039066,-19449.1355647,0.0002,2]
[364945065,1749333039077,-1674975.46844975,0.0002,2]
[364945066,1749333039087,-34508.88173965,0.0002,2]
[364945067,1749333039097,-275.65772645,0.0002,14]
[364945068,1749333039106,-323.61,0.0002,2]
[364945069,1749333039116,-86419.56099389,0.0002,2]
[364945070,1749333039126,-5820874.42777023,0.0002,2]
[364945071,1749333039139,-1818.76175909,0.0002,2]
[364945078,1749333039960,-947.72946,0.0002,2]
[364945101,1749333043272,-354.246374,0.0002,2]
[364945102,1749333045941,-150.0,0.00019223,2]
[364945103,1749333045952,-733.0,0.0002,2]
[364945105,1749333162871,310.47,0.00013699,2]
[364945110,1749333191223,205.0,0.00016645,2]
[364945112,1749333608111,7845.88058577,7.945e-05,2]
[364945113,1749333608133,10000.0,7.945e-05,2]
[364945114,1749333608155,10000.0,7.945e-05,2]
[364945115,1749333608179,1142.42408823,7.945e-05,2]
[364945116,1749333745112,-150.0,0.00019296,7]
[364945117,1749333745146,-1035.50121157,0.00019999,5]
[364945118,1749333745176,-4000.0,0.0002,4]
[364945119,1749333849138,-300.0,0.00018167,2]
[364945120,1749333867439,569.04,0.00016671,2]
[364945217,1749334202370,302.6,0.00013699,2]
[364945224,1749334231875,-200.0,0.00017499,2]
[364945225,1749334231885,-205.0,0.00017499,2]
[364945226,1749334231896,-1200.0,0.00018167,2]
[364945227,1749334231906,-636.0,0.00018168,2]
[364945228,1749334231917,-801.0,0.00018168,2]
[364945229,1749334231927,-1274.0,0.00018168,2]
[364945230,1749334231937,-926.0,0.00018168,2]
[364945231,1749334231947,-557.0,0.00018168,2]
[364945232,1749334231957,-589.0,0.00018168,2]
[364945233,1749334231968,-2000.0,0.00018168,2]
[364945234,1749334231978,-1255.0,0.00018168,2]
[364945235,1749334231988,-168.0,0.00018448,2]
[364945236,1749334231999,-166.48,0.00018485,2]
[364945237,1749334232009,-168.0,0.00018487,2]
[364945238,1749334232020,-168.0,0.00018515,2]
[364945239,1749334232030,-168.0,0.00018523,2]
[364945240,1749334232040,-200.0,0.00018535,3]
[364945241,1749334232050,-168.0,0.00018543,2]
[364945242,1749334232059,-517.3,0.00018556,2]
[364945243,1749334232068,-168.0,0.0001856,2]
[364945244,1749334232078,-7252.88,0.00018565,2]
[364945245,1749334232088,-168.0,0.00018583,2]
[364945246,1749334232098,-162.95,0.00018584,2]
[364945247,1749334232107,-168.0,0.00018626,2]
[364945248,1749334232118,-168.0,0.0001867,2]
[364945249,1749334232128,-168.0,0.0001868,2]
[364945250,1749334232137,-168.0,0.00018706,2]
[364945251,1749334232147,-1000.0,0.00018769,2]
[364945252,1749334232158,-168.0,0.00018775,2]
[364945253,1749334232170,-200.0,0.00018776,2]
[364945254,1749334232179,-4855.01,0.00018779,2]
[364945255,1749334232190,-300.0,0.00018797,2]
[364945256,1749334232200,-1025.07147938,0.00018799,2]
[364945257,1749334232210,-569.04,0.00018935,2]
[364945258,1749334232220,-324.61,0.00019,2]
[364945259,1749334232231,-163.2,0.00019038,2]
[364945261,1749334232241,-354.34,0.00019038,2]
[364945263,1749334232250,-4.98313747,0.0001919,2]
[364945267,1749334232274,-7013.01686253,0.0001919,2]
[364945269,1749334232284,-4082.0,0.0001919,2]
[364945271,1749334232294,-883.0,0.0001919,2]
[364945273,1749334232304,-166.66,0.00019198,2]
[364945275,1749334232314,-151.0,0.00019212,2]
[364945277,1749334232324,-500.0,0.00019212,2]
[364945279,1749334232334,-1957.856,0.00019212,2]
[364945281,1749334232344,-500.0,0.00019212,2]
[364945283,1749334232353,-250.21516833,0.00019212,2]
[364945285,1749334232364,-160.89281891,0.00019212,2]
[364945287,1749334232373,-500.0,0.00019212,2]
[364945289,1749334232384,-500.0,0.00019212,2]
[364945291,1749334232394,-500.0,0.00019212,2]
[364945293,1749334232403,-500.0,0.00019212,2]
[364945295,1749334232413,-500.0,0.00019212,2]
[364945297,1749334232423,-500.0,0.00019212,2]
[364945299,1749334232433,-500.0,0.00019212,2]
[364945303,1749334232443,-500.0,0.00019212,2]
[364945306,1749334232453,-500.0,0.00019212,2]
[364945309,1749334232462,-500.0,0.00019212,2]
[364945312,1749334232472,-500.0,0.00019212,2]
[364945314,1749334232482,-500.0,0.00019212,2]
[364945316,1749334232492,-500.0,0.00019212,2]
[364945318,1749334232501,-500.0,0.00019212,2]
[364945319,1749334232510,-207.4,0.00019212,2]
[364945322,1749334232520,-300.0,0.00019212,2]
[364945323,1749334232530,-300.0,0.00019212,2]
[364945325,1749334232540,-300.0,0.00019212,2]
[364945327,1749334232549,-300.0,0.00019212,2]
[364945329,1749334232559,-300.0,0.00019212,2]
[364945331,1749334232568,-300.0,0.00019212,2]
[364945332,1749334232578,-300.0,0.00019212,2]
[364945333,1749334232588,-300.0,0.00019212,2]
[364945335,1749334232598,-300.0,0.00019212,2]
[364945337,1749334232608,-300.0,0.00019212,2]
[364945339,1749334232618,-300.0,0.00019212,2]
[364945341,1749334232628,-300.0,0.00019212,2]
[364945343,1749334232639,-300.0,0.00019212,2]
[364945345,1749334232648,-300.0,0.00019212,2]
[364945347,1749334232661,-300.0,0.00019212,2]
[364945349,1749334232671,-300.0,0.00019212,2]
[364945351,1749334232680,-313.05670988,0.00019215,2]
[364945353,1749334232690,-150.0,0.00019223,2]
[364945355,1749334232702,-150.0,0.00019223,2]
[364945357,1749334232711,-150.0,0.00019223,2]
[364945359,1749334232721,-150.0,0.00019223,2]
[364945361,1749334232730,-944.0,0.00019223,2]
[364945363,1749334232741,-1164.0,0.00019223,2]
[364945365,1749334232751,-19999.99,0.00019223,2]
[364945367,1749334232761,-819.17378672,0.00019267,2]
[364945369,1749334232771,-300.0,0.000193,7]
[364945371,1749334232780,-300.0,0.000193,7]
[364945373,1749334232789,-150.0,0.000194,2]
[364945375,1749334232799,-6017.34658922,0.000194,2]
[364945377,1749334232810,-700.0,0.000194,7]
[364945379,1749334232819,-600.0,0.000194,7]
[364945381,1749334232831,-1100.0,0.000195,7]
[364945383,1749334232840,-227.6646,0.000195,2]
[364945385,1749334232852,-271.7593,0.000195,2]
[364945387,1749334232862,-1000.0,0.000195,7]
[364945389,1749334232872,-200.0,0.00019572,4]
[364945391,1749334232881,-182.317886,0.00019599,2]
[364945393,1749334232891,-1014.72176207,0.000196,2]
[364945395,1749334232902,-1129.68212193,0.000196,2]
[364945397,1749334232912,-1088.12402012,0.000196,2]
[364945399,1749334232922,-1134.02484393,0.000196,2]
[364945401,1749334232931,-106.45223616,0.000196,2]
[364945443,1749334237837,-155.0,0.0001919,2]
[364945444,1749334237848,-956.09626918,0.000196,2]
[364945446,1749334237858,-267.13373075,0.000196,2]
[364945448,1749334237896,-753.95401281,0.000196,2]
[364945449,1749334237906,-1091.44116722,0.000196,2]
[364945450,1749334237916,-1038.33618632,0.000196,2]
[364945451,1749334237925,-1124.04964075,0.000196,2]
[364945452,1749334237934,-934.10520781,0.000196,2]
[364945453,1749334238008,-111.9768159,0.000196,2]
[364945454,1749334238018,-1040.03182688,0.000196,2]
[364945455,1749334238031,-1145.37350526,0.000196,2]
[364945456,1749334238041,-1094.87107045,0.000196,2]
[364945457,1749334238051,-1038.31852163,0.000196,2]
[364945458,1749334238060,-1011.51767905,0.000196,2]
[364945459,1749334238071,-1500.0,0.000196,7]
[364945460,1749334238082,-1300.0,0.000196,7]
[364945461,1749334238093,-454.65,0.00019678,2]
[364945462,1749334238104,-909.1,0.00019678,2]
[364945463,1749334238116,-454.65,0.00019678,2]
[364945465,1749334238127,-454.65,0.00019678,2]
[364945467,1749334238137,-454.65,0.00019678,2]
[364945469,1749334238147,-1916.46,0.000197,2]
[364945471,1749334238156,-1800.0,0.000197,7]
[364945472,1749334238168,-1700.0,0.000197,7]
[364945475,1749334238178,-305.98,0.00019769,2]
[364945476,1749334238189,-303.49,0.00019769,2]
[364945479,1749334238199,-489.502,0.00019791,2]
[364945480,1749334238208,-302.35,0.00019796,2]
[364945482,1749334238218,-303.91,0.00019796,2]
[364945484,1749334238228,-300.0,0.00019796,2]
[364945486,1749334238238,-303.04,0.00019796,2]
[364945489,1749334238247,-304.53,0.00019796,2]
[364945491,1749334238257,-302.76,0.00019796,2]
[364945493,1749334238267,-300.26,0.00019796,2]
[364945495,1749334238277,-305.33,0.00019796,2]
[364945497,1749334238286,-303.21,0.00019796,2]
[364945499,1749334238297,-303.51,0.00019796,2]
[364945501,1749334238308,-301.3,0.00019796,2]
[364945503,1749334238317,-304.82,0.00019796,2]
[364945504,1749334238327,-304.39,0.00019797,2]
[364945506,1749334238337,-304.18,0.00019797,2]
[364945509,1749334238348,-305.1,0.00019797,2]
[364945511,1749334238358,-300.35,0.00019797,2]
[364945513,1749334238367,-301.4,0.00019797,2]
[364945515,1749334238377,-305.14,0.00019797,2]
[364945516,1749334238386,-301.26,0.00019797,2]
[364945518,1749334238395,-300.55,0.00019797,2]
[364945520,1749334238405,-302.09,0.00019797,2]
[364945522,1749334238415,-301.07,0.00019797,2]
[364945524,1749334238424,-301.98,0.00019797,2]
[364945525,1749334238434,-302.35,0.00019797,2]
[364945527,1749334238444,-6357.05054975,0.000198,3]
[364945530,1749334238456,-2642.94945025,0.000198,3]
[364945531,1749334238465,-148.48130975,0.000198,2]
[364945534,1749334238478,-227.51869025,0.000198,2]
[364945536,1749334238487,-300.0,0.000198,7]
[364945538,1749334238497,-300.0,0.000198,7]
[364945539,1749334238727,-3486.88871188,0.0001983,2]
[364945540,1749334238738,-142.41586132,0.0001984,2]
[364945541,1749334238752,-1857.58413868,0.0001984,2]
[364945542,1749334238762,-500.0,0.0001984,2]
[364945543,1749334238771,-159.71419966,0.00019843,2]
[364945544,1749334238781,-159.71419966,0.0001985,2]
[364945545,1749334238790,-159.71419966,0.00019857,2]
[364945546,1749334238800,-354.34,0.0001986,2]
[364945547,1749334238809,-708.52,0.0001986,2]
[364945548,1749334238820,-354.34,0.0001986,2]
[364945549,1749334238829,-159.71419966,0.00019864,2]
[364945550,1749334238838,-159.71419966,0.00019871,2]
[364945551,1749334238848,-159.71419966,0.00019879,2]
[364945552,1749334238858,-159.71419966,0.00019886,2]
[364945553,1749334238868,-1000.0,0.00019888,2]
[364945554,1749334238877,-159.71419966,0.00019893,2]
[364945555,1749334238887,-160.97247668,0.00019899,2]
[364945556,1749334238897,-180.32739972,0.00019899,2]
[364945557,1749334238907,-160.97247664,0.00019899,2]
[364945558,1749334238916,-160.97247664,0.00019899,2]
[364945559,1749334238926,-160.97247664,0.00019899,2]
[364945560,1749334238936,-160.97247664,0.000199,2]
[364945561,1749334238945,-160.97247664,0.000199,2]
[364945562,1749334238954,-341.4689,0.000199,2]
[364945563,1749334238963,-10.80256494,0.000199,2]
[364945564,1749334238976,-150.1699117,0.000199,2]
[364945565,1749334238986,-160.97247664,0.000199,2]
[364945566,1749334238996,-161.62472342,0.000199,2]
[364945567,1749334239005,-7000.0,0.000199,3]
[364945568,1749334239015,-768.0,0.000199,2]
[364945569,1749334239025,-300.0,0.000199,7]
[364945570,1749334239037,-2826.3395643,0.000199,2]
[364945571,1749334239047,-159.71419966,0.000199,2]
[364945572,1749334239056,-160.97247664,0.000199,2]
[364945573,1749334239065,-188.78514297,0.000199,2]
[364945574,1749334239075,-207.15990467,0.000199,7]
[364945575,1749334239353,-92.84009533,0.000199,7]
[364945576,1749334239363,-237.0,0.000199,2]
[364945577,1749334239372,-659.59990467,0.000199,2]
[364945578,1749334239383,-4660.15,0.000199,2]
[364945579,1749334239395,-8960.79986907,0.000199,2]
[364945580,1749334239404,-1680.0,0.00019916,2]
[364945581,1749334239415,-150.0,0.00019963,2]
[364945582,1749334239425,-500.0,0.00019973,2]
[364945583,1749334239435,-187.12199399,0.00019973,2]
[364945584,1749334239444,-501.86116812,0.00019973,2]
[364945585,1749334239461,-500.0,0.00019973,2]
[364945586,1749334239472,-500.0,0.00019973,2]
[364945587,1749334239483,-387.8252644,0.00019987,2]
[364945588,1749334239493,-8115.72730168,0.00019988,2]
[364945589,1749334239506,-2650.0,0.00019988,2]
[364945590,1749334239517,-144881.06263303,0.00019988,2]
[364945591,1749334239528,-453.37,0.00019999,2]
[364945592,1749334239539,-516.0,0.00019999,2]
[364945593,1749334239548,-395.30291666,0.0002,2]
[364945594,1749334239557,-9724.56778235,0.0002,2]
[364945595,1749334239567,-847487.73422488,0.0002,2]
[364945596,1749334239579,-4939444.1006733,0.0002,2]
[364945600,1749334240392,-3711.68492316,0.0002,2]
[364945601,1749334240473,-48182.36186483,0.0002,2]
[364945602,1749334240484,-981.82302469,0.0002,2]
[364945603,1749334240495,-1286.43499867,0.0002,2]
[364945613,1749334242859,-205.0,0.00017499,2]
[364945614,1749334242868,-136.66079265,0.0002,2]
[364945617,1749334905927,560.45,0.00016951,2]
[364945619,1749335221928,295.21,0.00013699,2]
[364945669,1749335432117,-201.0,0.00017608,2]
[364945670,1749335432127,-270.56769228,0.00018,2]
[364945671,1749335432238,-819.33484271,0.00018,2]
[364945672,1749335432250,-406.00751446,0.00018,2]
[364945713,1749335438033,-185.55790902,0.00018,2]
[364945714,1749335438047,-221.84180069,0.00018266,2]
[364945715,1749335438066,-300.0,0.0001865,2]
[364945716,1749335438081,-1200.0,0.0001865,2]
[364945717,1749335438097,-23900.0,0.00018651,2]
[364945718,1749335438113,-696.2,0.00018674,2]
[364945719,1749335438128,-198.17,0.00018704,2]
[364945720,1749335438143,-201.0,0.00018724,3]
[364945721,1749335438158,-166.2,0.00018749,2]
[364945722,1749335438174,-156.68,0.00018929,2]
[364945723,1749335438190,-250.0,0.00018929,2]
[364945724,1749335438205,-207.4,0.00018958,2]
[364945725,1749335438219,-300.0,0.00018968,2]
[364945726,1749335438232,-10138.87,0.00018969,2]
[364945727,1749335438246,-1000.0,0.00018994,2]
[364945728,1749335438259,-1000.0,0.00018999,2]
[364945729,1749335438272,-684.9,0.00019,2]
[364945730,1749335438287,-684.9,0.00019,2]
[364945731,1749335438300,-684.9,0.00019,2]
[364945732,1749335438313,-250.0,0.00019,2]
[364945733,1749335438327,-587.75,0.00019,7]
[364945734,1749335438340,-354.34,0.00019,2]
[364945735,1749335438352,-150.0,0.00019014,7]
[364945736,1749335438365,-2215.62,0.00019014,2]
[364945737,1749335438377,-500.0,0.000192,2]
[364945738,1749335438390,-500.0,0.000192,2]
[364945740,1749335438403,-560.45,0.00019215,2]
[364945741,1749335438416,-1274.0,0.00019373,2]
[364945744,1749335438430,-2000.0,0.00019373,2]
[364945747,1749335438442,-557.0,0.00019373,2]
[364945749,1749335438455,-589.0,0.00019373,2]
[364945752,1749335438468,-926.0,0.00019373,2]
[364945755,1749335438486,-1255.0,0.00019373,2]
[364945757,1749335438500,-1164.0,0.00019373,2]
[364945759,1749335438514,-944.0,0.00019373,2]
[364945762,1749335438528,-608.969,0.00019373,2]
[364945763,1749335438542,-155.0,0.00019373,2]
[364945764,1749335438555,-150.29,0.00019459,2]
[364945765,1749335438569,-300.58,0.00019459,2]
[364945766,1749335438582,-1000.0,0.00019499,2]
[364945767,1749335438596,-684.9,0.000195,2]
[364945768,1749335438609,-164.086097,0.00019599,2]
[364945769,1749335438621,-1724.82,0.000197,2]
[364945770,1749335438635,-8920.14394707,0.000197,2]
[364945771,1749335438647,-1000.0,0.00019748,2]
[364945772,1749335438661,-1000.0,0.00019748,2]
[364945773,1749335438674,-151.0,0.00019788,2]
[364945774,1749335438688,-1000.0,0.00019788,2]
[364945775,1749335438701,-500.0,0.00019788,2]
[364945776,1749335438713,-500.0,0.00019788,2]
[364945777,1749335438726,-500.0,0.00019788,2]
[364945778,1749335438739,-500.0,0.00019788,2]
[364945779,1749335438751,-500.0,0.00019788,2]
[364945780,1749335438764,-500.0,0.00019788,2]
[364945781,1749335438777,-500.0,0.00019788,2]
[364945782,1749335438790,-602.15084188,0.00019788,2]
[364945783,1749335438803,-300.0,0.00019788,2]
[364945784,1749335438815,-300.0,0.00019788,2]
[364945785,1749335438828,-300.0,0.00019788,2]
[364945786,1749335438841,-300.0,0.00019788,2]
[364945787,1749335438854,-300.0,0.00019788,2]
[364945788,1749335438868,-300.0,0.00019788,2]
[364945789,1749335438881,-300.0,0.00019788,2]
[364945790,1749335438898,-300.0,0.00019788,2]
[364945791,1749335438911,-159.61831628,0.00019788,2]
[364945792,1749335438925,-367.57580272,0.000198,2]
[364945793,1749335438939,-49562.51703231,0.000198,2]
[364945794,1749335438951,-367.57580267,0.00019811,2]
[364945795,1749335438965,-367.57580267,0.00019822,2]
[364945796,1749335438978,-205.0,0.0001983,2]
[364945797,1749335438991,-367.57580267,0.00019833,2]
[364945798,1749335439005,-201.0,0.0001984,5]
[364945799,1749335439019,-2000.0,0.0001984,2]
[364945800,1749335439032,-500.0,0.0001984,2]
[364945801,1749335439046,-367.57580267,0.00019844,2]
[364945802,1749335439059,-367.57580267,0.00019856,2]
[364945803,1749335439073,-367.57580267,0.00019867,2]
[364945804,1749335439087,-367.57580267,0.00019878,2]
[364945805,1749335439100,-367.57580267,0.00019889,2]
[364945806,1749335439115,-271.47768508,0.00019899,2]
[364945807,1749335439129,-391.602,0.000199,2]
[364945808,1749335439143,-12795.0,0.000199,2]
[364945809,1749335439155,-159.71419968,0.000199,2]
[364945810,1749335439167,-932.01593004,0.000199,2]
[364945811,1749335439180,-788.46184805,0.000199,2]
[364945812,1749335439191,-847.90186926,0.000199,2]
[364945813,1749335439203,-1000.0,0.000199,2]
[364945814,1749335439214,-7942.27282437,0.000199,2]
[364945815,1749335439224,-7942.2728243,0.000199,2]
[364945816,1749335439234,-7942.2728243,0.000199,2]
[364945817,1749335439244,-1000.0,0.000199,2]
[364945818,1749335439254,-237.0,0.000199,2]
[364945819,1749335439264,-490.84137172,0.000199,2]
[364945820,1749335439274,-439.11742542,0.000199,2]
[364945821,1749335439284,-367.57580267,0.000199,2]
[364945822,1749335439293,-1807.72010664,0.000199,2]
[364945823,1749335439304,-1807.72010664,0.000199,2]
[364945824,1749335439314,-28561.09954746,0.000199,2]
[364945825,1749335439324,-461.04,0.00019911,2]
[364945826,1749335439334,-461.04,0.00019911,2]
[364945827,1749335439345,-461.04,0.00019911,2]
[364945828,1749335439355,-461.04,0.00019911,2]
[364945829,1749335439365,-461.04,0.00019911,2]
[364945830,1749335439374,-201.16480522,0.00019958,2]
[364945831,1749335439385,-500.0,0.00019973,2]
[364945832,1749335439732,-500.0,0.00019973,2]
[364945833,1749335439800,-155.0,0.00019999,2]
[364945834,1749335439833,-1035.50121157,0.00019999,5]
[364945835,1749335439844,-434.47,0.00019999,2]
[364945836,1749335439855,-4862.28389117,0.0002,2]
[364945837,1749335439866,-483743.86711244,0.0002,2]
[364945838,1749335439877,-4000.0,0.0002,4]
[364945839,1749335439887,-2601882.04421615,0.0002,2]
[364945840,1749335439897,-990.48079066,0.0002,2]
[364945841,1749335439907,-387.0,0.0002,2]
[364945842,1749335439917,-159536.93778819,0.0002,2]
[364945843,1749335439928,-352.83056456,0.0002,2]
[364945844,1749335439938,-500.0,0.0002,2]
[364945845,1749335439948,-500.0,0.0002,2]
[364945846,1749335439958,-500.0,0.0002,2]
[364945847,1749335439969,-500.0,0.0002,2]
[364945848,1749335439979,-500.0,0.0002,2]
[364945849,1749335439989,-500.0,0.0002,2]
[364945850,1749335439999,-500.0,0.0002,2]
[364945852,1749335440009,-500.0,0.0002,2]
[364945854,1749335440019,-500.0,0.0002,2]
[364945856,1749335440028,-985.0,0.0002,2]
[364945857,1749335440039,-800.0,0.0002,2]
[364945858,1749335440049,-800.0,0.0002,2]
[364945859,1749335440058,-800.0,0.0002,2]
[364945860,1749335440068,-800.0,0.0002,2]
[364945861,1749335440078,-800.0,0.0002,2]
[364945862,1749335440088,-800.0,0.0002,2]
[364945863,1749335440098,-800.0,0.0002,2]
[364945864,1749335440107,-800.0,0.0002,2]
[364945865,1749335440117,-800.0,0.0002,2]
[364945866,1749335440127,-800.0,0.0002,2]
[364945867,1749335440136,-500.0,0.0002,2]
[364945868,1749335440146,-823.0,0.0002,2]
[364945869,1749335440156,-500.0,0.0002,2]
[364945870,1749335440171,-500.0,0.0002,2]
[364945871,1749335440181,-500.0,0.0002,2]
[364945872,1749335440191,-500.0,0.0002,2]
[364945873,1749335440201,-500.0,0.0002,2]
[364945874,1749335440210,-500.0,0.0002,2]
[364945875,1749335440220,-500.0,0.0002,2]
[364945876,1749335440230,-500.0,0.0002,2]
[364945877,1749335440240,-500.0,0.0002,2]
[364945878,1749335440249,-1448223.21675938,0.0002,2]
[364945879,1749335440274,-104851.21708873,0.0002,2]
[364945880,1749335440580,-41520.36114969,0.0002,2]
[364945881,1749335440600,-4082.0,0.00019373,2]
[364945882,1749335440610,-1161.96502944,0.0002,2]
[364945883,1749335440650,-23103.81493013,0.0002,2]
[364945903,1749335574993,-150.0,0.00019238,7]
[364945904,1749335575018,-6581.901,0.00019373,2]
[364945905,1749335575043,-801.0,0.00019404,2]
[364945906,1749335575069,-636.0,0.00019404,2]
[364945907,1749335575094,-1159.0,0.00019404,2]
[364945908,1749335575117,-557.0,0.00019404,2]
[364945909,1749335575141,-2000.0,0.00019404,2]
[364945910,1749335575166,-926.0,0.00019404,2]
[364945911,1749335575189,-1274.0,0.00019404,2]
[364945912,1749335575212,-589.0,0.00019404,2]
[364945913,1749335575236,-1245.292,0.00019404,2]
[364945914,1749335575261,-164.086097,0.00019599,2]
[364945915,1749335575284,-2500.0,0.000199,2]
[364945916,1749335575307,-798.5709984,0.000199,2]
[364945917,1749335575330,-5000.0,0.000199,2]
[364945918,1749335575352,-376.0,0.000199,2]
[364945919,1749335575374,-30000.0,0.000199,2]
[364945920,1749335575409,-7148.04554187,0.000199,2]
[364945921,1749335575432,-768.0,0.000199,2]
[364945922,1749335575457,-201.0,0.00019955,2]
[364945923,1749335575481,-500.0,0.00019973,2]
[364945924,1749335575504,-500.0,0.00019973,2]
[364945925,1749335575528,-151.0,0.00019988,2]
[364945926,1749335575555,-207.4,0.00019988,2]
[364945927,1749335575578,-30000.0,0.0001999,2]
[364945928,1749335575872,-190.03437956,0.00019999,2]
[364945929,1749335575902,-2431.14194558,0.0002,2]
[364945930,1749335575933,-241871.93355622,0.0002,2]
[364945931,1749335575960,-565403.4854295,0.0002,2]
[364945932,1749335575985,-10000.0,0.0002,2]
[364945933,1749335576008,-1489.21277906,0.0002,2]
[364945934,1749335576034,-1418.69957792,0.0002,5]
[364945935,1749335576057,-111788.32879079,0.0002,4]
[364945936,1749335576082,-906173.8679041,0.0002,2]
[364945938,1749336265777,288.18,0.00013699,2]
[364945945,1749336521378,201.0,0.00016955,2]
[364945952,1749336632515,-1200.0,0.00017123,2]
[364945953,1749336632526,-504.4,0.00017124,2]
[364945954,1749336632536,-201.0,0.00018151,3]
[364945955,1749336632550,-1680.0,0.00018792,2]
[364945956,1749336632560,-348.1,0.00018858,2]
[364945957,1749336632570,-448.43,0.00019,2]
[364945959,1749336632580,-881.98223185,0.00019,2]